fUST/lending_fUST_20240420
["ID","MTS","AMOUNT","RATE_DAILY","PERIOD"]
[322974656,1713551991152,1000.0,0.00027397,2]
[322974657,1713552035094,154.86062544,0.000278,2]
[322974658,1713552036355,154.86062544,0.000278,2]
[322974659,1713552044286,673.02624515,0.000278,2]
[322974660,1713552051231,204.00475123,0.000278,2]
[322974661,1713552061450,539.43970623,0.000278,2]
[322974662,1713552061678,1576.32789394,0.000278,2]
[322974663,1713552063094,3530.73370012,0.000278,2]
[322974664,1713552066662,283.08369263,0.000278,2]
[322974665,1713552066884,1549.5887261,0.000278,2]
[322974666,1713552073345,977.06231715,0.000278,2]
[322974667,1713552076632,688.90875736,0.000278,2]
[322974668,1713552076670,9197.10689236,0.00026991,2]
[322974672,1713552426628,-3530.73370012,0.0002697,2]
[322974673,1713552426648,-1089.6608071,0.0002697,2]
[322974674,1713552426670,-673.02624515,0.00026971,2]
[322974675,1713552426692,-154.86062544,0.00026972,2]
[322974676,1713552426713,-154.86062544,0.00026972,2]
[322974677,1713552426734,-784.09852565,0.00026973,2]
[322974678,1713552426754,-354.53717402,0.00026973,2]
[322974679,1713552426777,-300.0,0.00026976,2]
[322974680,1713552426799,-745.84599999,0.00026977,2]
[322974681,1713552426823,-15702.89310764,0.00026991,2]
[322974682,1713552426844,-211.28141,0.00027397,2]
[322974683,1713552426865,-436.27626791,0.00027748,3]
[322974684,1713552426887,-1471.93483096,0.00027898,2]
[322974685,1713552426912,-3485.71537099,0.00027899,2]
[322974686,1713552426934,-400.0,0.00028246,2]
[322974687,1713552426957,-521.03498526,0.00028246,2]
[322974688,1713552426978,-155.61936825,0.00028246,2]
[322974689,1713552426999,-203.13500899,0.00028246,2]
[322974690,1713552427020,-230.19315228,0.00028246,2]
[322974691,1713552427042,-429.87086846,0.00028246,2]
[322974692,1713552427063,-594.18483252,0.00028246,2]
[322974693,1713552427084,-525.74547902,0.00028247,2]
[322974694,1713552427105,-503.2,0.00029216,14]
[322974695,1713552427126,-420.0,0.00029673,2]
[322974696,1713552427147,-1876.29253279,0.000298,2]
[322974697,1713552427169,-244.23256671,0.00029889,2]
[322974698,1713552427191,-191.130441,0.00029889,2]
[322974699,1713552427212,-310.92,0.0002989,3]
[322974700,1713552427233,-329.3,0.0002989,3]
[322974701,1713552427254,-317.6,0.0002989,3]
[322974702,1713552427276,-264.66,0.0002989,3]
[322974703,1713552427297,-1028.4588001,0.00029897,2]
[322974704,1713552427317,-406.54946422,0.00029898,2]
[322974705,1713552427338,-225.01939352,0.00029898,2]
[322974706,1713552427358,-324.90873852,0.00029898,2]
[322974707,1713552427378,-392.29594679,0.00029898,2]
[322974708,1713552427402,-1693.00225238,0.00029898,2]
[322974709,1713552427424,-397.4256505,0.00029898,2]
[322974710,1713552427448,-270.18335202,0.00029898,2]
[322974711,1713552427470,-273.43796959,0.00029898,2]
[322974712,1713552427492,-155.79079844,0.00029898,2]
[322974713,1713552427513,-424.94859899,0.00029898,2]
[322974714,1713552427534,-686.57073639,0.00029898,2]
[322974715,1713552427553,-193.47447521,0.00029898,2]
[322974716,1713552427684,-226.07238405,0.00029899,2]
[322974717,1713552427708,-89841.7463898,0.000299,2]
[322974718,1713552447145,-241.3290765,0.00026969,2]
[322974719,1713552447165,-283.08369263,0.00026969,2]
[322974720,1713552447186,-2622.05694045,0.00026969,2]
[322974721,1713552447206,-696.66936109,0.00029868,2]
[322974722,1713552447226,-266.67779148,0.00029898,2]
[322974723,1713552447247,-154.8608233,0.00029898,2]
[322974724,1713552447266,-371.78546037,0.00029899,2]
[322974725,1713552447286,-278.6350172,0.00029899,2]
[322974726,1713552447305,-1383.87903571,0.00029899,2]
[322974727,1713552447326,-5877.82432712,0.000299,2]
[322974728,1713552454089,-326.49000298,0.00029898,2]
[322974729,1713552454110,-48396.76455947,0.000299,2]
[322974730,1713552454130,-157.24100892,0.00029985,2]
[322974731,1713552454149,-2581.8677432,0.00029986,2]
[322974732,1713552454171,-150.0,0.00029999,2]
[322974733,1713552454190,-932.19614796,0.0003,4]
[322974734,1713552454212,-1833.45370997,0.0003,2]
[322974735,1713552454233,-576.30999217,0.0003,2]
[322974736,1713552454253,-31321.06831637,0.0003,2]
[322974737,1713552454274,-1234.64783511,0.0003,2]
[322974738,1713552454294,-240.0,0.0003,2]
[322974739,1713552454315,-151.36378773,0.00030439,2]
[322974740,1713552454335,-150.0,0.00030999,2]
[322974741,1713552454355,-350.42643964,0.00031,4]
[322974742,1713552454374,-1962.86676987,0.00031,2]
[322974743,1713552454393,-150.0,0.00031999,2]
[322974744,1713552454412,-191.2801184,0.00032,4]
[322974745,1713552454434,-183.8,0.00032631,3]
[322974746,1713552454454,-587.0,0.00032641,2]
[322974747,1713552454475,-150.84915085,0.00032715,2]
[322974748,1713552454495,-240.0,0.00033,2]
[322974749,1713552454515,-213.77074152,0.00033,7]
[322974750,1713552454534,-211.28141,0.00033165,2]
[322974751,1713552454555,-213.77074152,0.00033221,7]
[322974752,1713552454578,-301.6983017,0.00033265,4]
[322974753,1713552454598,-159.160995,0.00033486,2]
[322974754,1713552454618,-153.54682459,0.00033633,7]
[322974755,1713552454638,-213.77074152,0.00033665,7]
[322974756,1713552454658,-213.77074152,0.0003368,7]
[322974757,1713552454677,-153.54682459,0.00033768,7]
[322974758,1713552454697,-300.16602744,0.000338,2]
[322974759,1713552454721,-603.3966034,0.00033824,7]
[322974760,1713552454740,-155.01378089,0.00033869,3]
[322974761,1713552454761,-465.76981599,0.00034,4]
[322974762,1713552454781,-189.92,0.00034052,3]
[322974763,1713552454801,-3203.62314768,0.00034062,3]
[322974764,1713552513984,256.33470642,0.000305,29]
[322974765,1713552573545,1788.02854127,0.000305,29]
[322974791,1713552632040,-350.42643964,0.00031,4]
[322974792,1713552632050,-191.2801184,0.00032,4]
[322974793,1713552632059,-277.60171443,0.00033033,4]
[322974794,1713552632069,-400.0,0.00033034,2]
[322974795,1713552632078,-84.25831573,0.00033035,2]
[322974796,1713552632097,-1463.51827063,0.00033035,2]
[322974810,1713552640067,-23352.22341364,0.00033035,2]
[322974811,1713552640077,-155.0137809,0.00033869,3]
[322974812,1713552640086,-163.59252819,0.00033939,7]
[322974813,1713552640096,-809.2722273,0.0003406,4]
[322974814,1713552640105,-158.857458,0.0003406,4]
[322974815,1713552640114,-2366.65171408,0.00034061,2]
[322974816,1713552640123,-165.51429482,0.00034061,4]
[322974817,1713552640131,-337.32284995,0.00034061,4]
[322974818,1713552640140,-240.0,0.00034062,2]
[322974819,1713552640149,-41240.37685232,0.00034062,3]
[322974820,1713552640158,-213.77074152,0.00034134,7]
[322974821,1713552640168,-158.27,0.00034151,3]
[322974822,1713552640177,-22608.98926071,0.00034161,5]
[322974823,1713552640186,-1218.27253,0.00034161,2]
[322974824,1713552640195,-1218.27253,0.00034161,2]
[322974826,1713552640203,-1218.27253,0.00034161,2]
[322974828,1713552640214,-1218.27253,0.00034161,2]
[322974829,1713552640223,-151.0,0.00034161,2]
[322974830,1713552640232,-151.0,0.00034161,2]
[322974831,1713552640241,-151.0,0.00034161,2]
[322974832,1713552640250,-153.147677,0.00034161,2]
[322974833,1713552640259,-537.877702,0.00034161,2]
[322974834,1713552640268,-537.877702,0.00034161,2]
[322974835,1713552640277,-94.98395757,0.00034161,2]
[322974836,1713552640288,-442.89374443,0.00034161,2]
[322974837,1713552640297,-537.877702,0.00034161,2]
[322974838,1713552640306,-289.834412,0.00034161,2]
[322974839,1713552640315,-2864.510709,0.00034161,2]
[322974840,1713552640323,-2451.99724164,0.00034161,2]
[322974841,1713552640334,-412.51346736,0.00034161,2]
[322974842,1713552640346,-2127.6130311,0.00034161,2]
[322974924,1713552643339,-465.76981599,0.00034059,4]
[322974925,1713552643348,-791.36,0.00034151,3]
[322974926,1713552643357,-736.8976779,0.00034161,2]
[322974927,1713552643366,-2864.510709,0.00034161,2]
[322974928,1713552643376,-2864.510709,0.00034161,2]
[322974929,1713552643386,-2864.510709,0.00034161,2]
[322974930,1713552643395,-151.0,0.00034161,2]
[322974931,1713552643404,-151.0,0.00034161,2]
[322974932,1713552643414,-151.0,0.00034161,2]
[322974933,1713552643423,-5858.68770986,0.00034161,14]
[322974949,1713552646123,-12176.80152585,0.00034161,14]
[322974950,1713552646182,-134636.68791556,0.00034161,14]
[322975036,1713553832286,-332.21467201,0.00027268,2]
[322975038,1713553832295,-354.53717402,0.00027269,2]
[322975040,1713553832304,-354.90450272,0.0002727,2]
[322975041,1713553832314,-165.336319,0.00027397,2]
[322975042,1713553832323,-159.315737,0.00027397,2]
[322975043,1713553832332,-152.17332462,0.00028372,2]
[322975211,1713553840407,-377.645624,0.00026272,2]
[322975212,1713553840418,-89.15575188,0.00028372,2]
[322975213,1713553840428,-300.0,0.00028373,2]
[322975214,1713553840438,-33.453611,0.00028373,2]
[322975263,1713553843468,-228.546389,0.00028373,2]
[322975264,1713553843478,-125.32657182,0.00028373,2]
[322975265,1713553843489,-157.75712081,0.00028373,2]
[322975266,1713553843498,-2622.05694045,0.00028374,2]
[322975267,1713553843507,-31273.83103706,0.00028374,2]
[322975268,1713553843516,-7454.32923362,0.00028375,2]
[322975298,1713554756144,-251.76374933,0.00026275,2]
[322975299,1713554756164,-159.160995,0.00027397,2]
[322975300,1713554756182,-168.114,0.00027397,2]
[322975301,1713554756201,-326.35254308,0.00028372,2]
[322975302,1713554756219,-331.93451305,0.00028372,2]
[322975303,1713554756237,-300.0,0.00029348,2]
[322975304,1713554756258,-24619.06264898,0.00029349,2]
[322975305,1713554826590,-280.93735102,0.00029349,2]
[322975306,1713554826614,-150.84915085,0.00029756,7]
[322975307,1713554826805,-150.84915085,0.00030363,4]
[322975308,1713554826826,-1352.3101937,0.00030745,4]
[322975309,1713554826850,-150.84915085,0.00030983,2]
[322975310,1713554826872,-350.42643964,0.00031,4]
[322975311,1713554826893,-400.0,0.00031267,2]
[322975312,1713554826919,-7861.29104078,0.00031268,4]
[322975313,1713554826940,-251.76374933,0.00031275,2]
[322975314,1713554826961,-191.2801184,0.00032749,4]
[322975315,1713554826982,-200.0,0.0003275,10]
[322975316,1713554827003,-163.5925282,0.00033147,7]
[322975317,1713554827024,-500.0,0.00034,120]
[322975318,1713554827045,-500.0,0.00034,120]
[322975319,1713554827065,-465.76981599,0.0003405,4]
[322975320,1713554827086,-18022.02929823,0.00034051,4]
[322975321,1713554827107,-563.87316233,0.00034051,4]
[322975322,1713554827129,-44444.0,0.00034051,3]
[322975323,1713554827151,-2129.98654269,0.00034051,2]
[322975324,1713554827172,-1000.0,0.000341,7]
[322975325,1713554827193,-500.0,0.0003415,7]
[322975326,1713554827214,-500.0,0.0003415,7]
[322975327,1713554827234,-477.22357235,0.0003415,7]
[322975328,1713554827256,-500.0,0.0003415,7]
[322975329,1713554827278,-500.0,0.0003415,7]
[322975330,1713554827300,-500.0,0.0003415,7]
[322975331,1713554827321,-500.0,0.0003415,7]
[322975332,1713554827342,-269.75066179,0.0003415,7]
[322975333,1713554827364,-364.16559572,0.0003415,7]
[322975334,1713554827385,-495.98580602,0.0003415,7]
[322975335,1713554827407,-400.0,0.0003415,7]
[322975336,1713554827429,-500.0,0.0003415,7]
[322975337,1713554827454,-600.0933721,0.00034151,5]
[322975355,1713555032485,-305.48195172,0.00029249,2]
[322975356,1713555032494,-186.55804828,0.00031,4]
[322975426,1713555038672,-163.86839136,0.00031,4]
[322975428,1713555038681,-178.1422846,0.00033211,7]
[322975430,1713555038691,-178.1422846,0.00033276,7]
[322975433,1713555038700,-178.1422846,0.00033719,7]
[322975434,1713555038710,-178.1422846,0.00033961,7]
[322975437,1713555038719,-163.5925282,0.00033994,7]
[322975439,1713555038730,-465.76981599,0.00034,4]
[322975441,1713555038739,-1916.98788843,0.00034049,2]
[322975443,1713555038748,-381.74173443,0.00034051,6]
[322975445,1713555038757,-623.31363126,0.00034147,4]
[322975447,1713555038766,-400.0,0.00034148,2]
[322975449,1713555038776,-1404.58765594,0.00034148,3]
[322975451,1713555038784,-500.0,0.00034148,7]
[322975453,1713555038793,-409.24967871,0.00034148,7]
[322975454,1713555038806,-270.0,0.00034148,7]
[322975456,1713555038814,-11004.44794431,0.00034149,5]
[322975458,1713555038823,-246.21384874,0.00034149,4]
[322975460,1713555038832,-174.768823,0.00034149,2]
[322975462,1713555038841,-174.768823,0.00034149,2]
[322975464,1713555038850,-174.768823,0.00034149,2]
[322975466,1713555038859,-174.768823,0.00034149,2]
[322975468,1713555038868,-174.768823,0.00034149,2]
[322975470,1713555038877,-174.768823,0.00034149,2]
[322975472,1713555038886,-174.768823,0.00034149,2]
[322975474,1713555038895,-174.768823,0.00034149,2]
[322975476,1713555038904,-151.0,0.00034149,2]
[322975478,1713555038913,-151.0,0.00034149,2]
[322975480,1713555038922,-151.0,0.00034149,2]
[322975482,1713555038932,-151.0,0.00034149,2]
[322975484,1713555038941,-505.832648,0.00034149,2]
[322975486,1713555038950,-505.832648,0.00034149,2]
[322975488,1713555038959,-505.832648,0.00034149,2]
[322975490,1713555038969,-505.832648,0.00034149,2]
[322975492,1713555038978,-505.832648,0.00034149,2]
[322975494,1713555038986,-2005.157496,0.00034149,2]
[322975496,1713555038995,-505.832648,0.00034149,2]
[322975498,1713555039005,-505.832648,0.00034149,2]
[322975500,1713555039015,-505.832648,0.00034149,2]
[322975503,1713555039025,-2005.157496,0.00034149,2]
[322975504,1713555039034,-2005.157496,0.00034149,2]
[322975507,1713555039045,-2005.157496,0.00034149,2]
[322975509,1713555039061,-1738.093735,0.00034149,2]
[322975511,1713555039070,-2005.157496,0.00034149,2]
[322975512,1713555039079,-1738.093735,0.00034149,2]
[322975514,1713555039089,-2005.157496,0.00034149,2]
[322975517,1713555039099,-1738.093735,0.00034149,2]
[322975518,1713555039108,-2005.157496,0.00034149,2]
[322975520,1713555039117,-1738.093735,0.00034149,2]
[322975523,1713555039127,-2005.157496,0.00034149,2]
[322975525,1713555039136,-1738.093735,0.00034149,2]
[322975526,1713555039146,-1738.093735,0.00034149,2]
[322975528,1713555039155,-1738.093735,0.00034149,2]
[322975530,1713555039164,-1738.093735,0.00034149,2]
[322975533,1713555039173,-151.0,0.00034149,2]
[322975534,1713555039182,-151.0,0.00034149,2]
[322975536,1713555039192,-151.0,0.00034149,2]
[322975539,1713555039201,-151.0,0.00034149,2]
[322975540,1713555039210,-151.0,0.00034149,2]
[322975543,1713555039219,-151.0,0.00034149,2]
[322975545,1713555039232,-161.533822,0.00034149,2]
[322975547,1713555039241,-71573.81271512,0.00034149,14]
[322975618,1713555040540,-563.87316233,0.00034149,14]
[322975619,1713555040554,-4742.78702492,0.00034149,14]
[322975620,1713555040596,-93466.98170835,0.00034149,14]
[322975762,1713555954158,-602.88452761,0.00027386,2]
[322975763,1713555954178,-1876.66751895,0.00027387,2]
[322975764,1713555954197,-256.287796,0.00027397,2]
[322975765,1713555954217,-154.84515485,0.00030734,4]
[322975766,1713555954237,-400.0,0.00030893,2]
[322975767,1713555954256,-14523.66178643,0.00030894,2]
[322975768,1713555954275,-1042.06997052,0.00030998,4]
[322975769,1713555954295,-200.24367979,0.00031,4]
[322975770,1713555954314,-278.6350172,0.00031703,4]
[322975771,1713555954336,-932.19614796,0.00031703,4]
[322975772,1713555954354,-154.8608233,0.00031704,4]
[322975773,1713555954373,-696.66936109,0.00031704,4]
[322975774,1713555954393,-240.0,0.00031705,2]
[322975775,1713555954413,-9466.06151995,0.00031705,2]
[322975776,1713556046087,-150.0,0.00029605,2]
[322975777,1713556046106,-350.42643964,0.00031,4]
[322975778,1713556046125,-400.0,0.00031704,2]
[322975779,1713556046144,-7446.34975451,0.00031705,2]
[322975810,1713556172099,-164.025822,0.00027397,2]
[322975880,1713556238737,-191.2801184,0.00032,4]
[322975882,1713556238747,-2669.82488923,0.00033012,2]
[322975896,1713556238871,-3424.98427802,0.00033012,2]
[322980068,1713556665544,-7757.63675231,0.00032029,120]
[322980069,1713556711778,-2242.36324769,0.00032029,120]
[322980073,1713557253259,8521.364,0.000231,2]
[322980074,1713557271422,5366.2842,0.00032502,30]
[322980075,1713557291024,10000.0,0.000261,10]
[322980080,1713557360158,-202.97456,0.00027397,2]
[322980081,1713557360183,-300.0,0.00029552,2]
[322980082,1713557360207,-11673.82696585,0.00029553,2]
[322980084,1713557368111,-13226.17303415,0.00029553,2]
[322980085,1713557368131,-54274.58888659,0.000299,2]
[322980086,1713557368152,-225.65281422,0.000299,2]
[322980087,1713557368172,-384.17,0.0002999,3]
[322980088,1713557368192,-320.14,0.0002999,3]
[322980089,1713557368212,-266.79,0.0002999,3]
[322980090,1713557368231,-500.0,0.00029999,2]
[322980091,1713557368250,-380.92519854,0.00029999,2]
[322980092,1713557368271,-175.39271945,0.00029999,2]
[322980093,1713557368291,-500.0,0.00029999,2]
[322980094,1713557368312,-159.26934628,0.00029999,2]
[322980095,1713557368336,-500.0,0.00029999,2]
[322980096,1713557368356,-163.25365651,0.00029999,2]
[322980097,1713557368376,-1833.45370997,0.0003,2]
[322980098,1713557368399,-576.30999217,0.0003,2]
[322980099,1713557368419,-1477.34183148,0.0003,2]
[322980100,1713557375299,4633.716,0.000231,2]
[322980128,1713557431887,-300.0,0.00029999,2]
[322980130,1713557431898,-29843.72648489,0.0003,2]
[322980132,1713557431907,-150.83408251,0.00030276,2]
[322980134,1713557431917,-225.65281419,0.00030936,2]
[322980136,1713557431926,-1962.86676987,0.00031,2]
[322980138,1713557431937,-151.36378773,0.00031965,2]
[322980139,1713557431947,-225.65281419,0.00031971,2]
[322980140,1713557431956,-191.2801184,0.00032,4]
[322980141,1713557431965,-5366.2842,0.00032502,30]
[322980142,1713557431974,-420.0,0.00032999,2]
[322980143,1713557431983,-225.65281419,0.00033007,2]
[322980144,1713557431993,-256.287796,0.00033165,2]
[322980145,1713557432002,-202.97456,0.00033165,2]
[322980146,1713557432011,-153.54682459,0.00033489,7]
[322980147,1713557432020,-150.83408251,0.0003364,2]
[322980148,1713557432030,-210.29925085,0.00033665,7]
[322980149,1713557432041,-210.29925085,0.00033703,7]
[322980150,1713557432052,-155.01378089,0.00033807,3]
[322980151,1713557432062,-1312.59502038,0.00034,3]
[322980152,1713557432071,-168.33,0.00034,120]
[322980153,1713557432080,-465.76981599,0.00034041,4]
[322980154,1713557432089,-225.65281419,0.00034042,2]
[322980155,1713557432098,-1725.28909956,0.00034042,2]
[322980156,1713557432108,-553.47970987,0.00034047,4]
[322980157,1713557432117,-371.78546037,0.00034047,4]
[322980158,1713557432127,-157.24100892,0.00034047,4]
[322980159,1713557432136,-266.67779148,0.00034047,4]
[322980160,1713557432146,-494.15122377,0.00034047,4]
[322980217,1713557439892,-1425.38531659,0.00034047,4]
[322980219,1713557439902,-601.5437755,0.00034047,4]
[322980220,1713557439911,-2581.8677432,0.00034048,4]
[322980222,1713557439920,-158.857458,0.00034048,4]
[322980224,1713557439930,-237.0,0.0003405,2]
[322980225,1713557439939,-12020.85346154,0.0003405,3]
[322980227,1713557440037,-3067.55173553,0.0003405,3]
[322980323,1713557453872,154.86062544,0.000231,2]
[322980329,1713558211764,10000.0,0.000261,10]
[322980331,1713558288809,10000.0,0.000261,10]
[322980332,1713558319926,7399.0,0.000261,10]
[322980333,1713558397648,2601.0,0.000231,2]
[322980334,1713558502549,9999.0,0.000231,2]
[322980335,1713558518237,10000.0,0.000231,2]
[322980336,1713558546645,-4489.58078714,0.00030499,4]
[322980337,1713558546667,-400.0,0.00030499,2]
[322980338,1713558546691,-300.0,0.00030499,2]
[322980339,1713558546713,-5077.26774185,0.000305,5]
[322980340,1713558547116,-4921.54068224,0.000305,5]
[322980473,1713558641908,-140.121855,0.00027397,2]
[322980606,1713558643250,-90.537161,0.00027397,2]
[322980608,1713558643259,-350.42643964,0.00031,4]
[322980610,1713558643269,-100.82530387,0.0003164,2]
[322980612,1713558643281,-299.17469613,0.0003164,2]
[322980614,1713558643291,-237.0,0.00031641,2]
[322980616,1713558643300,-7348.05446168,0.00031641,120]
[322982256,1713559224696,2574.2339,0.00030475,30]
[322982257,1713559270729,10000.0,0.000231,2]
[322982258,1713559280619,10000.0,0.000231,2]
[322982259,1713559344266,10000.0,0.0002525,10]
[322982260,1713559422227,10000.0,0.000231,2]
[322982261,1713559746709,-158.92745084,0.00027396,2]
[322982262,1713559746732,-5.09837116,0.00027397,2]
[322982263,1713559747830,9090.05937456,0.000231,2]
[322982264,1713559749078,-900.42643964,0.000231,2]
[322982265,1713559755122,-9.5141858,0.000231,2]
[322982266,1713559755144,-158.52065284,0.00027397,2]
[322982267,1713559755164,-146.40684041,0.000274,2]
[322982268,1713559764391,10000.0,0.0002525,10]
[322982269,1713559772098,-8.53118438,0.000274,2]
[322982270,1713559772118,-450.94545456,0.0003062,30]
[322982313,1713559832339,-213.53016428,0.00031483,4]
[322982314,1713559832351,-986.46983572,0.00031484,120]
[322982355,1713559838333,-1665.47570258,0.00031484,120]
[322982357,1713559838343,-166.666666,0.00031495,2]
[322982358,1713559838353,-214.1762478,0.00031564,2]
[322982361,1713559838363,-1042.06997052,0.00031639,4]
[322982363,1713559838373,-400.0,0.00031735,2]
[322982365,1713559838383,-7856.3309436,0.00031736,2]
[322982366,1713559838392,-1000.0,0.00031868,2]
[322982370,1713559838402,-612.0882645,0.00031886,2]
[322982373,1713559838412,-168.681896,0.00032099,2]
[322982375,1713559838421,-189.845099,0.00032192,2]
[322982377,1713559838431,-926.83408172,0.00032321,4]
[322982379,1713559838441,-154.84515485,0.00032323,4]
[322982381,1713559838450,-153.0,0.00032797,2]
[322982383,1713559838460,-116.29075305,0.000329,2]
[322982385,1713559838472,-183.87527439,0.000329,2]
[322982387,1713559838481,-308.19,0.00033161,120]
[322982389,1713559838490,-230.659016,0.00033165,2]
[322982391,1713559838499,-153.54682459,0.00033446,7]
[322982393,1713559838508,-123.72888502,0.00033709,3]
[322982476,1713559843419,-31.28489588,0.00033709,3]
[322982477,1713559843429,-150.0,0.0003373,15]
[322982478,1713559843438,-430.28593653,0.00033829,6]
[322982479,1713559843448,-171.76556522,0.00033922,2]
[322982480,1713559843457,-230.72165344,0.00034,2]
[322982528,1713559846454,-9.27834656,0.00034,2]
[322982529,1713559846463,-3123.0,0.00034,120]
[322982530,1713559846473,-847.43994156,0.00034,2]
[322982531,1713559846483,-2436.98171188,0.00034,7]
[322982536,1713559866884,207.51280264,0.0003062,2]
[322982537,1713559923753,10000.0,0.0002525,10]
[322982538,1713559944234,5000.6,0.000226,2]
[322982539,1713559965076,5000.59,0.000226,2]
[322982540,1713559982340,3064.05664056,0.000226,2]
[322982542,1713559998348,2093.36648613,0.000226,2]
[322982543,1713560085048,10000.0,0.0002525,10]
[322982556,1713560947236,-154.84515485,0.00023139,2]
[322982557,1713560947257,-158.92745084,0.0002314,2]
[322982558,1713560947277,-471.31782646,0.0002314,2]
[322982559,1713560947298,-154.84515485,0.00023141,2]
[322982560,1713560947319,-2126.51224034,0.00023141,2]
[322982561,1713560947341,-300.0,0.00023141,2]
[322982562,1713560947361,-300.0,0.00023141,2]
[322982563,1713560947383,-2097.87546031,0.00023142,2]
[322982564,1713560947407,-468.09250976,0.00023142,2]
[322982565,1713560947428,-688.90875736,0.00023142,2]
[322982566,1713560947450,-186.06822211,0.00023143,2]
[322982567,1713560947471,-154.84515485,0.00023143,2]
[322982568,1713560947492,-497.51110003,0.0002315,2]
[322982569,1713560947512,-420.0,0.00025117,2]
[322982570,1713560947532,-420.0,0.00025455,2]
[322982571,1713560947551,-280.0,0.00026391,2]
[322982572,1713560947571,-298.43292,0.00026922,2]
[322982573,1713560947590,-672.41723112,0.00026937,2]
[322982574,1713560947610,-587.0,0.00027262,2]
[322982575,1713560947630,-168.918986,0.00027314,2]
[322982576,1713560947651,-221.349593,0.00027397,2]
[322982577,1713560947672,-166.666666,0.00027397,2]
[322982578,1713560947692,-1000.0,0.00027465,2]
[322982579,1713560947712,-587.0,0.00028001,2]
[322982580,1713560947732,-166.666666,0.00028064,2]
[322982581,1713560947753,-497.51110003,0.0002815,2]
[322982582,1713560947772,-622.62086156,0.00028283,2]
[322982583,1713560947791,-166.666666,0.00028731,2]
[322982584,1713560947811,-3755.70689933,0.0002877,2]
[322982585,1713560947830,-166.666666,0.00029398,2]
[322982586,1713560947849,-620.13104308,0.00029698,2]
[322982587,1713560947870,-534.82484673,0.000298,4]
[322982588,1713560947889,-5315.27173957,0.000299,2]
[322982589,1713560947909,-2000.0,0.000299,2]
[322982590,1713560947928,-211.58360867,0.00029998,2]
[322982591,1713560947948,-205.75607667,0.00029998,2]
[322982592,1713560947967,-154.95351395,0.00029998,2]
[322982593,1713560947986,-500.0,0.00029999,2]
[322982594,1713560948006,-500.0,0.00029999,2]
[322982595,1713560948026,-500.0,0.00029999,2]
[322982596,1713560948045,-500.0,0.00029999,2]
[322982597,1713560948066,-612.26005722,0.00029999,2]
[322982598,1713560948190,-247.2126059,0.00029999,2]
[322982599,1713560948210,-378.66594077,0.00029999,2]
[322982600,1713560948228,-500.0,0.00029999,2]
[322982601,1713560948248,-500.0,0.00029999,2]
[322982602,1713560948267,-609.42653394,0.00029999,2]
[322982603,1713560948286,-37525.28742271,0.0003,2]
[322982604,1713560948305,-587.0,0.0003,2]
[322982605,1713560948326,-166.666666,0.00030065,2]
[322982606,1713560948346,-248.7,0.00030076,3]
[322982607,1713560948365,-499.40540248,0.00030084,4]
[322982608,1713560948386,-606.18901415,0.00030085,2]
[322982609,1713560948407,-500.0,0.00030085,2]
[322982610,1713560948428,-500.0,0.00030085,2]
[322982611,1713560948448,-500.0,0.00030085,2]
[322982612,1713560948468,-495.98580602,0.00030085,2]
[322982613,1713560948491,-500.0,0.00030085,2]
[322982614,1713560948511,-500.0,0.00030085,2]
[322982615,1713560948531,-500.0,0.00030085,2]
[322982616,1713560948550,-500.0,0.00030085,2]
[322982617,1713560948570,-500.0,0.00030085,2]
[322982618,1713560948590,-545.6276601,0.00030085,2]
[322982619,1713560948611,-528.11689929,0.00030085,2]
[322982620,1713560948631,-500.0,0.00030085,2]
[322982621,1713560948651,-500.0,0.00030085,2]
[322982622,1713560948672,-500.0,0.00030085,2]
[322982623,1713560948693,-500.0,0.00030085,2]
[322982624,1713560948713,-500.0,0.00030085,2]